bitfinex-derivatives/quotes_ETHF0:USTF0_20250421
["timestamp","ask_amount","ask_price","bid_price","bid_amount"]
[1745257354802,0.00948497,1581.2,1581.0,15.61201]
[1745257355110,1.26479,1581.1,1581.0,9.3472]
[1745257355308,1.26479,1581.1,1581.0,3.2012]
[1745257355502,1.26479,1581.1,1581.0,44.0012]
[1745257355903,3.21728497,1581.2,1581.0,44.0012]
[1745257356103,1.26479,1581.1,1581.0,44.0012]
[1745257356309,4.48201497,1581.2,1581.0,45.26606]
[1745257356505,1.26479,1581.1,1581.0,44.0012]
[1745257357210,4.40989,1581.1,1581.0,3.2012]
[1745257357415,1.26487,1581.0,1580.9,0.00948497]
[1745257357609,7.52777,1581.0,1580.9,0.00948497]
[1745257357913,12.52777,1581.0,1580.9,4.97e-06]
[1745257358213,18.78566345,1581.0,1580.9,4.97e-06]
[1745257358913,26.07168744,1581.0,1580.9,4.97e-06]
[1745257359808,18.78566345,1581.0,1580.9,4.97e-06]
[1745257361111,13.78566345,1581.0,1580.9,4.97e-06]
[1745257361515,13.67377,1581.0,1580.9,4.97e-06]
[1745257361812,10.61867,1581.0,1580.9,4.47915497]
[1745257362019,10.61867,1581.0,1580.9,3.21420497]
[1745257362214,4.47267,1581.0,1580.9,3.21420497]
[1745257363114,7.74567,1581.0,1580.9,4.97e-06]
[1745257363512,12.74567,1581.0,1580.9,4.97e-06]
[1745257363714,15.85387,1581.0,1580.9,4.97e-06]
[1745257364115,21.99987,1581.0,1580.9,4.97e-06]
[1745257364318,28.09571474,1581.0,1580.9,4.97e-06]
[1745257364616,28.09570395,1581.0,1580.9,4.97e-06]
[1745257364818,22.11170395,1581.0,1580.9,4.97e-06]
[1745257366817,17.11170395,1581.0,1580.9,4.97e-06]
[1745257367213,10.96570395,1581.0,1580.9,4.97e-06]
[1745257368026,4.47267,1581.0,1580.9,4.97e-06]
[1745257371925,1.26487,1581.0,1580.9,4.97e-06]
[1745257372416,0.00948497,1581.2,1581.1,1.26479]
[1745257372616,0.00948497,1581.2,1581.1,4.47259]
[1745257372819,0.00948497,1581.2,1581.1,9.47259]
[1745257373025,1.27419497,1581.2,1581.1,8.2078]
[1745257373218,0.00948497,1581.2,1581.1,12.82069]
[1745257373418,1.27419497,1581.2,1581.1,12.06196872]
[1745257373620,1.27419497,1581.2,1581.1,10.11895872]
[1745257373621,0.00948497,1581.2,1581.1,10.11895872]
[1745257374123,0.00948497,1581.2,1581.1,8.85416872]
[1745257374320,1.27419497,1581.2,1581.1,3.3481]
[1745257374614,0.00948497,1581.2,1581.1,3.3481]
[1745257374825,0.00948497,1581.2,1581.1,4.61289]
[1745257376822,1.27419497,1581.2,1581.1,4.61289]
[1745257377121,0.00948497,1581.2,1581.1,4.61289]
[1745257380123,1.27419497,1581.2,1581.1,4.61289]
[1745257380323,1.27419497,1581.2,1581.1,3.3481]
[1745257381124,1.27419497,1581.2,1581.0,1.26484]
[1745257381332,1.26487,1581.0,1580.9,3.33430497]
[1745257381823,4.36917,1581.0,1580.9,3.33430497]
[1745257382825,4.47262,1581.1,1580.9,4.59917497]
[1745257383029,4.47262,1581.1,1580.9,4.59918497]
[1745257383227,1.26487,1581.0,1580.9,4.97e-06]
[1745257383434,4.36917,1581.0,1580.9,4.97e-06]
[1745257383824,4.36917,1581.0,1580.9,3.19870497]
[1745257384331,10.51517,1581.0,1580.9,3.19870497]
[1745257384526,10.51517,1581.0,1580.9,4.46365497]
[1745257384923,10.51517,1581.0,1580.9,3.19870497]
[1745257385123,4.36917,1581.0,1580.9,3.19870497]
[1745257385625,4.36917,1581.0,1580.9,4.46365497]
[1745257386831,1.26487,1581.0,1580.9,3.19870497]
[1745257387031,4.35797,1581.0,1580.9,3.19870497]
[1745257387235,1.26487,1581.0,1580.9,4.46365497]
[1745257387428,6.3674,1581.1,1581.0,1.26487]
[1745257387429,3.2078,1581.1,1581.0,1.26487]
[1745257387626,3.2078,1581.1,1581.0,10.95827]
[1745257387821,4.47259,1581.1,1581.0,10.95827]
[1745257389138,3.2078,1581.1,1581.0,10.95827]
[1745257389432,4.47259,1581.1,1581.0,3.2967]
[1745257389641,1.26487,1581.0,1580.9,4.97e-06]
[1745257389929,11.00227,1581.0,1580.9,4.97e-06]
[1745257391230,16.11465238,1581.0,1580.9,4.97e-06]
[1745257392139,22.26065238,1581.0,1580.9,4.97e-06]
[1745257392333,28.8754058,1581.0,1580.9,4.97e-06]
[1745257392640,1.26535,1580.4,1580.3,43.8949]
[1745257392833,4.47315,1580.4,1580.3,45.16029]
[1745257393035,3.2078,1580.4,1580.3,45.16029]
[1745257394341,4.47315,1580.4,1580.3,45.16029]
[1745257394640,3.2078,1580.4,1580.3,45.16029]
[1745257397245,3.2078,1580.4,1580.3,50.16029]
[1745257397441,3.2078,1580.4,1580.3,45.16029]
[1745257397636,1.26514,1580.7,1580.3,50.16029]
[1745257397831,11.6201,1580.8,1580.4,9.43175]
[1745257398036,18.69340861,1581.0,1580.4,9.43175]
[1745257398037,12.44117861,1581.0,1580.9,1.26495]
[1745257398239,10.90138886,1581.0,1580.9,6.56795]
[1745257398538,14.10918886,1581.0,1580.8,3.0223]
[1745257398842,17.21948886,1581.0,1580.9,1.26495]
[1745257399038,10.90138886,1581.0,1580.9,1.26495]
[1745257399243,12.16625886,1581.0,1580.9,3.3422]
[1745257399445,10.90138886,1581.0,1580.9,4.60715]
[1745257399644,10.90138886,1581.0,1580.9,7.62945]
[1745257400143,10.90138886,1581.0,1580.9,12.62945]
[1745257400346,2.98639589,1581.0,1580.9,19.08335]
[1745257401136,2.98639589,1581.0,1580.9,25.22935]
[1745257401834,0.00948497,1581.2,1581.1,1.26479]
[1745257402033,14.51470838,1581.6,1581.5,1.26447]
[1745257402239,15.77912838,1581.6,1581.2,3.2165]
[1745257402438,19.10532838,1581.6,1581.4,1.26451]
[1745257402640,19.10532838,1581.6,1581.5,3.2165]
[1745257402834,17.84090838,1581.6,1581.5,4.48097]
[1745257403036,14.51470838,1581.6,1581.5,4.48097]
[1745257403433,14.51470838,1581.6,1581.5,3.2165]
[1745257403639,14.51470838,1581.6,1581.5,4.48097]
[1745257404047,15.77909838,1581.6,1581.5,3.2165]
[1745257404250,1.26447,1581.5,1581.4,0.00948497]
[1745257404444,7.60427,1581.5,1581.4,0.00948497]
[1745257404647,7.60427,1581.5,1581.4,3.17478497]
[1745257404843,7.60427,1581.5,1581.4,0.00948497]
[1745257409051,13.75027,1581.5,1581.4,0.00948497]
[1745257410257,13.75027,1581.5,1581.4,1.27403497]
[1745257410759,13.75027,1581.5,1581.4,0.00948497]
[1745257411251,1.26471,1581.2,1581.1,47.36773]
[1745257411452,1.26471,1581.2,1581.1,8.5982]
[1745257411750,1.26487,1581.0,1580.9,3.1354]
[1745257411955,1.26502,1580.9,1580.8,1.26501]
[1745257412152,4.54272,1580.9,1580.8,1.26501]
[1745257412354,4.54272,1580.9,1580.8,3.1894]
[1745257412549,1.26502,1580.9,1580.8,3.1894]
[1745257412749,7.75051,1580.9,1580.7,43.8262]
[1745257412951,7.75051,1580.9,1580.8,3.1894]
[1745257413466,1.26511,1580.7,1580.6,3.1894]
[1745257413758,1.26527,1580.5,1580.4,5.301]
[1745257413957,1.26543,1580.3,1580.2,3.1805]
[1745257414155,6.37113,1580.5,1580.1,5.301]
[1745257414352,1.26551,1580.2,1580.1,5.301]
[1745257414751,1.26559,1580.1,1579.9,7.65328]
[1745257414952,3.2078,1580.1,1579.9,6.3876]
[1745257415153,6.37183,1580.1,1579.6,5.79728421]
[1745257415352,1.26574,1580.0,1579.7,1.2659]
[1745257415556,1.26577,1579.9,1579.7,42.0659]
[1745257415952,4.37427497,1580.0,1579.8,3.18]
[1745257416156,0.00948497,1580.0,1579.9,1.26575]
[1745257416355,0.00948497,1580.0,1579.9,4.59425]
[1745257417158,0.00948497,1580.0,1579.9,10.74025]
[1745257417365,0.00948497,1580.0,1579.9,21.04325]
[1745257417662,0.00948497,1580.0,1579.9,24.22325]
[1745257418068,3.2078,1580.4,1580.3,1.26543]
[1745257418659,3.2078,1580.4,1580.3,48.58973]
[1745257424668,3.29398497,1580.5,1580.4,1.26535]
[1745257424865,3.29398497,1580.5,1580.4,4.32175]
[1745257425272,0.00948497,1580.5,1580.4,4.32175]
[1745257426070,0.00948497,1580.5,1580.4,15.46775]
[1745257426266,4.97e-06,1580.5,1580.4,15.46775]
[1745257426466,12.5547,1581.1,1581.0,1.26487]
[1745257426661,14.51470838,1581.2,1581.1,1.26479]
[1745257426869,14.51470838,1581.2,1581.1,3.0564]
[1745257427067,15.77941838,1581.2,1581.0,40.8]
[1745257427272,7.51489,1581.1,1581.0,40.8]
[1745257427474,1.26494,1581.0,1580.8,6.55701]
[1745257427678,3.0423,1580.9,1580.8,5.292]
[1745257427975,4.30725,1580.9,1580.8,5.292]
[1745257428368,4.30725,1580.9,1580.8,46.092]
[1745257428570,4.30725,1580.9,1580.8,5.292]
[1745257428768,3.0423,1580.9,1580.8,6.55703]
[1745257429372,4.30725,1580.9,1580.8,5.292]
[1745257429576,1.26494,1581.0,1580.8,6.55699]
[1745257429777,4.30724,1581.0,1580.8,6.55699]
[1745257430271,3.0423,1581.0,1580.9,1.26495]
[1745257430479,3.0423,1581.0,1580.9,4.23505]
[1745257430667,9.3038,1581.1,1580.9,2.9701]
[1745257430867,2.9336,1581.0,1580.9,4.23502]
[1745257431268,9.3038,1581.1,1581.0,1.26487]
[1745257431269,6.4126,1581.1,1581.0,1.26487]
[1745257431470,3.2078,1581.1,1581.0,4.23497]
[1745257431777,0.00948497,1581.2,1581.1,1.26479]
[1745257432071,0.00948497,1581.2,1581.1,4.23489]
[1745257433677,1.26479,1581.1,1581.0,1.26484]
[1745257433979,7.39799,1581.1,1581.0,4.28734]
[1745257434275,6.1332,1581.1,1581.0,4.28734]
[1745257434474,7.39799,1581.1,1581.0,1.26484]
[1745257434677,6.1332,1581.1,1581.0,1.26484]
[1745257435066,4.19019,1581.1,1581.0,1.26484]
[1745257435273,2.9254,1581.1,1581.0,1.26484]
[1745257435472,6.1332,1581.1,1581.0,1.26484]
[1745257435674,7.39799,1581.1,1581.0,1.26484]
[1745257435875,1.26495,1580.9,1580.8,5.292]
[1745257436071,4.19033,1581.0,1580.8,5.292]
[1745257436276,2.9254,1581.0,1580.8,1.26501]
[1745257436478,2.9223,1580.9,1580.8,3.0703]
[1745257436677,7.39508,1580.9,1580.8,1.26503]
[1745257436979,1.26503,1580.8,1580.7,0.00948497]
[1745257437176,4.18733,1580.8,1580.7,0.00948497]
[1745257437677,4.18733,1580.8,1580.7,1.27459497]
[1745257438278,4.18733,1580.8,1580.7,0.00948497]
[1745257439776,4.18733,1580.8,1580.7,1.27459497]
[1745257440370,4.18733,1580.8,1580.7,0.00948497]
[1745257440866,4.18733,1580.8,1580.7,1.27459497]
[1745257441580,4.25203,1581.0,1580.9,1.26495]
[1745257442069,1.26495,1580.9,1580.8,4.21367]
[1745257442274,1.26503,1580.8,1580.7,1.27452497]
[1745257442469,1.26503,1580.8,1580.7,0.00948497]
[1745257442880,4.22223,1580.8,1580.7,0.00948497]
[1745257443072,10.36823,1580.8,1580.7,0.00948497]
[1745257444281,4.22223,1580.8,1580.7,0.00948497]
[1745257448081,10.36823,1580.8,1580.7,0.00948497]
[1745257449383,4.22223,1580.8,1580.7,0.00948497]
[1745257451489,6.3793,1581.1,1580.7,5.00948497]
[1745257451686,3.2078,1580.9,1580.8,1.26502]
[1745257451983,3.2078,1580.9,1580.8,2.8732]
[1745257452287,4.47275,1580.9,1580.8,4.13823]
[1745257452683,3.2078,1580.9,1580.8,4.13823]
[1745257452885,4.47275,1580.9,1580.8,4.13823]
[1745257453077,3.2078,1580.9,1580.8,4.13823]
[1745257453279,0.00948497,1581.2,1581.1,1.26479]
[1745257453482,0.00948497,1581.2,1581.0,4.13801]
[1745257453790,1.26481,1581.1,1580.9,6.5449]
[1745257453988,2.92038497,1581.2,1580.9,5.28]
[1745257454196,0.00948497,1581.2,1581.1,1.26479]
[1745257454492,0.00948497,1581.2,1581.1,4.27159]
[1745257455689,0.00948497,1581.2,1581.1,3.0068]
[1745257455881,0.00948497,1581.2,1581.1,4.27159]
[1745257456490,0.00948497,1581.2,1581.1,14.55059]
[1745257458384,3.2078,1581.5,1581.4,1.26455]
[1745257459194,7.20248,1581.8,1581.6,1.26439]
[1745257459390,25.87490838,1581.9,1581.4,5.279]
[1745257459602,1.27390497,1581.6,1581.5,40.8]
[1745257459895,1.27390497,1581.6,1581.5,40.80948497]
[1745257460096,4.14630497,1581.6,1581.5,42.07395497]
[1745257460300,4.14630497,1581.6,1581.5,40.80948497]
[1745257460495,4.14630497,1581.6,1581.5,0.00948497]
[1745257460888,7.88188497,1581.6,1581.2,9.4289]
[1745257461093,7.4553,1581.5,1581.3,42.06458]
[1745257461597,7.4553,1581.5,1581.3,1.26458]
[1745257461796,1.26459,1581.4,1581.2,15.97257]
[1745257461997,2.983,1581.4,1581.3,1.26463]
[1745257462388,4.24756,1581.4,1581.2,56.77254]
[1745257462593,2.983,1581.4,1581.3,1.26463]
[1745257462992,4.2476,1581.4,1581.2,56.77257]
[1745257463204,0.00948497,1581.6,1581.5,1.26447]
[1745257463390,0.00948497,1581.6,1581.5,6.54247]
[1745257463899,0.00948497,1581.6,1581.5,47.34247]
[1745257467601,1.27387497,1581.6,1581.5,47.34247]
[1745257467802,0.00948497,1581.6,1581.5,47.34247]
[1745257469195,0.00948497,1581.6,1581.5,50.24297]
[1745257471096,0.00948497,1581.6,1581.5,50.73853408]
[1745257471304,0.00948497,1581.6,1581.5,50.24297]
[1745257471595,1.27387497,1581.6,1581.5,50.24297]
[1745257471796,2.98308497,1581.6,1581.5,50.24297]
[1745257472301,0.00948497,1581.6,1581.5,50.24297]
[1745257472601,0.00948497,1581.6,1581.5,50.75826782]
[1745257473099,0.00948497,1581.6,1581.5,50.24297]
[1745257475502,3.2078,1581.9,1581.8,1.26423]
[1745257475696,5.948,1582.0,1581.9,1.26415]
[1745257475898,6.1072,1582.3,1582.0,4.42423]
[1745257476198,2.8994,1582.3,1582.2,1.26391]
[1745257476397,2.8994,1582.3,1581.9,5.277]
[1745257476398,9.26693,1582.3,1581.9,5.277]
[1745257476705,4.47185,1582.1,1581.9,8.30088497]
[1745257477002,3.2078,1582.1,1581.9,9.56497497]
[1745257477202,2.8994,1582.0,1581.9,9.56497497]
[1745257477400,2.8994,1582.0,1581.9,0.00948497]
[1745257477606,9.16347,1582.0,1581.9,0.00948497]
[1745257477800,1.26423,1581.8,1581.7,5.277]
[1745257478006,3.2078,1581.8,1581.5,45.07883]
[1745257478206,4.47219,1581.6,1581.5,40.8]
[1745257478506,1.26447,1581.5,1581.3,1.26456]
[1745257478696,3.2078,1581.4,1581.3,1.26456]
[1745257479101,6.3409,1581.4,1581.3,1.26456]
[1745257479402,12.60547,1581.4,1581.2,0.00948497]
[1745257479602,3.1331,1581.4,1581.3,1.26463]
[1745257479797,3.1331,1581.4,1581.3,4.33943]
[1745257480197,6.055,1581.5,1581.4,1.26455]
[1745257480394,9.1881,1581.5,1581.4,4.33935]
[1745257480701,10.45257,1581.5,1581.4,3.0748]
[1745257481405,9.1881,1581.5,1581.4,4.33935]
[1745257481799,2.9593,1581.5,1581.4,4.33935]
[1745257481992,3.21728497,1581.6,1581.4,3.0748]
[1745257482198,6.06838497,1581.6,1581.5,2.9712]
[1745257482397,6.06838497,1581.6,1581.4,1.26447]
[1745257482398,7.33277497,1581.6,1581.3,11.5019]
[1745257482593,2.8511,1581.5,1581.4,4.23575]
[1745257483311,4.11557,1581.5,1581.4,2.9712]
[1745257483709,2.8511,1581.5,1581.4,4.23575]
[1745257483910,2.8511,1581.5,1581.4,2.9712]
[1745257484210,2.8511,1581.5,1581.4,4.23575]
[1745257484401,4.11557,1581.5,1581.4,4.23575]
[1745257484704,4.11557,1581.5,1581.4,2.9712]
[1745257485210,1.26455,1581.4,1581.3,6.53063]
[1745257485403,3.64495,1581.4,1581.3,5.266]
[1745257485603,3.64495,1581.4,1581.3,7.6926]
[1745257485909,2.3804,1581.4,1581.3,8.95723]
[1745257486102,5.5294,1581.5,1581.4,1.26455]
[1745257486309,2.9745,1581.5,1581.4,3.69115]
[1745257486505,4.23897,1581.5,1581.4,2.4266]
[1745257486705,1.26455,1581.4,1581.3,5.266]
[1745257486901,5.5882,1581.4,1581.3,6.53063]
[1745257487101,2.3804,1581.4,1581.3,8.95723]
[1745257487410,3.64495,1581.4,1581.3,8.95723]
[1745257488010,2.3804,1581.4,1581.3,8.95723]
[1745257488205,3.64495,1581.4,1581.3,2.4266]
[1745257488406,6.85275,1581.4,1581.3,3.69123]
[1745257488705,5.5882,1581.4,1581.3,3.69123]
[1745257488906,3.2078,1581.4,1581.3,3.69123]
[1745257491098,5.61008497,1581.6,1581.3,7.6926]
[1745257491401,6.87447497,1581.6,1581.5,1.26447]
[1745257492011,3.21728497,1581.6,1581.5,1.26447]
[1745257492211,0.00948497,1581.6,1581.5,1.26447]
[1745257492403,0.00948497,1581.6,1581.5,3.78717]
[1745257492710,1.27387497,1581.6,1581.5,3.78717]
[1745257492915,0.00948497,1581.6,1581.5,3.78717]
[1745257493211,4.48167497,1581.6,1581.5,3.78717]
[1745257493507,3.21728497,1581.6,1581.5,3.78717]
[1745257493709,0.00948497,1581.6,1581.5,3.78717]
[1745257495808,0.00948497,1581.6,1581.5,1.26447]
[1745257496110,3.21728497,1581.6,1581.5,1.26447]
[1745257496411,4.48167497,1581.6,1581.4,2.3972]
[1745257496607,2.5457,1581.5,1581.4,3.66168]
[1745257497004,3.21728497,1581.6,1581.5,1.26447]
[1745257497206,0.00948497,1581.6,1581.5,5.91157]
[1745257497406,6.37829497,1581.6,1581.2,0.00948497]
[1745257497707,4.47243,1581.3,1581.2,0.00948497]
[1745257498116,15.61843,1581.3,1581.2,0.00948497]
[1745257498619,18.28176597,1581.3,1581.2,0.00948497]
[1745257500413,18.28176597,1581.3,1581.2,4.97e-06]
[1745257503817,25.40064934,1581.3,1581.2,4.97e-06]
[1745257505220,13.28176597,1581.3,1581.2,4.97e-06]
[1745257505520,13.28192975,1581.3,1581.2,4.97e-06]
[1745257506318,18.28192975,1581.3,1581.2,4.97e-06]
[1745257506519,25.31036636,1581.3,1581.2,4.97e-06]
[1745257506720,31.29436636,1581.3,1581.2,4.97e-06]
[1745257507108,31.29429988,1581.3,1581.2,4.97e-06]
[1745257509711,1.26527,1580.5,1580.4,47.33229]
[1745257509918,4.47307,1580.5,1580.4,6.53229]
[1745257510118,4.47307,1580.5,1580.4,11.53229]
[1745257510316,4.47307,1580.5,1580.4,54.72039]
[1745257510517,4.47307,1580.5,1580.4,49.72039]
[1745257511823,3.2078,1580.5,1580.4,54.72039]
[1745257512029,0.00948497,1580.6,1580.5,1.26527]
[1745257512329,3.2078,1580.8,1580.5,1.26527]
[1745257512330,2.96771471,1580.8,1580.7,1.26511]
[1745257512723,2.96771471,1580.8,1580.7,6.26511]
[1745257513327,2.96771471,1580.8,1580.7,11.06981]
[1745257513527,1.27447497,1580.9,1580.8,1.26503]
[1745257513528,0.00948497,1580.9,1580.8,1.26503]
[1745257513720,0.00948497,1580.9,1580.8,3.59013]
[1745257514019,0.00948497,1580.9,1580.8,8.59013]
[1745257514525,1.27443497,1580.9,1580.8,7.3251]
[1745257514720,1.27443497,1580.9,1580.8,2.3251]
[1745257514926,1.27443497,1580.9,1580.8,3.59013]
[1745257515128,1.27443497,1580.9,1580.8,2.3251]
[1745257515837,0.00948497,1580.9,1580.8,2.3251]
[1745257516730,1.27443497,1580.9,1580.8,2.3251]
[1745257516929,0.00948497,1580.9,1580.8,3.59013]
[1745257517131,1.27443497,1580.9,1580.8,2.3251]
[1745257517629,1.27443497,1580.9,1580.8,3.59013]
[1745257517630,0.00948497,1580.9,1580.8,3.59013]
[1745257517826,1.27443497,1580.9,1580.8,2.3251]
[1745257518032,1.26516,1580.7,1580.5,1.26524]
[1745257518324,1.26509,1580.8,1580.6,3.72785]
[1745257518519,1.26509,1580.8,1580.7,2.5163]
[1745257520627,3.58199497,1580.9,1580.7,3.78135]
[1745257521034,0.00948497,1580.9,1580.8,3.78133]
[1745257521433,3.2078,1581.1,1581.0,1.26487]
[1745257521624,1.26469,1581.3,1581.1,1.26472]
[1745257521825,1.26469,1581.3,1581.2,2.5283]
[1745257522028,1.26469,1581.3,1580.9,5.97492]
[1745257522324,1.26469,1581.3,1581.0,2.5283]
[1745257522325,1.26479,1581.1,1581.0,2.5283]
[1745257522525,3.2078,1581.2,1580.6,1.26512]
[1745257522526,1.26503,1580.8,1580.6,1.26512]
[1745257522832,1.26503,1580.8,1580.7,2.5283]
[1745257523925,4.47281,1580.9,1580.8,1.26503]
[1745257524125,1.26491,1581.0,1580.9,1.26493]
[1745257525335,1.26496,1580.9,1580.8,1.26498]
[1745257525824,1.26493,1581.0,1580.9,1.26492]
[1745257526019,1.26493,1581.0,1580.8,1.26503]
[1745257526233,17.14639,1581.1,1580.7,1.26505]
[1745257526527,1.26503,1580.8,1580.7,1.26505]
[1745257526732,1.26501,1580.9,1580.6,4.8516]
[1745257526928,8.4638,1581.1,1580.6,11.2222]
[1745257527233,1.26497,1580.9,1580.8,1.26503]
[1745257527632,3.2078,1581.1,1581.0,1.26487]
[1745257527830,1.27420497,1581.2,1580.9,6.37008]
[1745257528032,1.26479,1581.1,1581.0,6.1659]
[1745257528232,1.27425497,1581.2,1581.1,1.26479]
[1745257528636,1.27425497,1581.2,1581.0,6.1659]
[1745257528935,1.27425497,1581.2,1581.1,1.26479]
[1745257529736,1.27425497,1581.2,1581.0,6.16592]
[1745257530143,1.27425497,1581.2,1581.1,1.26479]
[1745257530331,1.27425497,1581.2,1581.1,4.47259]
[1745257530332,0.00948497,1581.2,1581.1,4.47259]
[1745257530533,14.51470838,1581.7,1581.1,13.4648]
[1745257530735,15.77901838,1581.7,1581.4,1.26455]
[1745257530938,1.26441,1581.6,1581.5,6.11417]
[1745257531137,15.77901838,1581.7,1581.5,45.6497]
[1745257531438,14.51470838,1581.7,1581.6,1.26439]
[1745257531637,14.51470838,1581.7,1581.5,45.6497]
[1745257531840,14.51470838,1581.7,1581.6,1.26439]
[1745257532631,8.926878,1581.7,1581.6,6.26439]
[1745257532837,0.00948497,1581.8,1581.6,6.26439]
[1745257532838,0.00948497,1581.8,1581.7,1.26431]
[1745257533038,0.00948497,1581.8,1581.7,10.19112097]
[1745257533241,0.00948497,1581.8,1581.7,21.33712097]
[1745257536834,5.6734,1582.5,1582.4,1.26375]
[1745257537036,2.328,1582.6,1582.4,1.26368]
[1745257537235,3.59161,1582.6,1582.4,1.26368]
[1745257537540,3.59161,1582.6,1582.5,1.26367]
[1745257537730,2.328,1582.6,1582.5,1.26367]
[1745257537935,3.15937,1582.4,1581.7,9.3538]
[1745257538137,1.26413,1582.0,1581.7,3.2078]
[1745257538342,3.2078,1582.1,1581.7,1.26425]
[1745257538343,3.59215,1581.9,1581.7,1.26425]
[1745257538642,3.59215,1581.9,1581.8,1.26423]
[1745257538643,2.328,1581.9,1581.8,1.26423]
[1745257539141,8.474,1581.9,1581.7,1.27373497]
[1745257539339,9.73815,1581.9,1581.7,3.74813497]
[1745257539733,8.474,1581.9,1581.8,1.26423]
[1745257539933,9.73815,1581.9,1581.8,2.3892]
[1745257540535,1.26423,1581.8,1581.7,0.00948497]
[1745257540740,6.11043,1581.8,1581.7,0.00948497]
[1745257541137,12.25643,1581.8,1581.7,0.00948497]
[1745257541337,6.146,1581.8,1581.7,1.27379497]
[1745257541832,9.79833,1581.8,1581.7,2.39868497]
[1745257542029,9.79833,1581.8,1581.7,0.00948497]
[1745257542442,14.79833,1581.8,1581.7,0.00948497]
[1745257543039,8.5341,1581.8,1581.7,0.00948497]
[1745257543236,9.79833,1581.8,1581.7,2.28838497]
[1745257543947,9.79833,1581.8,1581.7,0.00948497]
[1745257545244,3.65233,1581.8,1581.7,0.00948497]
[1745257546138,2.3881,1581.8,1581.7,1.27379497]
[1745257546346,2.3881,1581.8,1581.7,3.58019497]
[1745257546644,3.65233,1581.8,1581.7,3.58019497]
[1745257547334,3.65233,1581.8,1581.7,0.00948497]
[1745257548146,9.79833,1581.8,1581.7,0.00948497]
[1745257548747,8.5341,1581.8,1581.7,1.27379497]
[1745257549139,2.3881,1581.8,1581.7,1.27379497]
[1745257549339,3.65233,1581.8,1581.7,1.27379497]
[1745257549647,3.65233,1581.8,1581.7,0.00948497]
[1745257549847,3.65233,1581.8,1581.7,1.27379497]
[1745257550048,3.65233,1581.8,1581.7,0.00948497]
[1745257550342,2.3881,1581.8,1581.7,1.27379497]
[1745257550546,3.21728497,1581.9,1581.8,1.26423]
[1745257550736,0.00948497,1581.9,1581.8,1.26423]
[1745257550941,0.00948497,1581.9,1581.8,8.82633]
[1745257551249,1.27363497,1581.9,1581.8,6.50523]
[1745257551444,1.27363497,1581.9,1581.8,5.241]
[1745257551648,1.27363497,1581.9,1581.8,6.50523]
[1745257552052,1.27363497,1581.9,1581.8,5.241]
[1745257552250,1.26423,1581.8,1581.7,0.00948497]
[1745257552444,3.73693,1581.8,1581.7,0.00948497]
[1745257552650,8.73693,1581.8,1581.7,0.00948497]
[1745257552844,8.73693,1581.8,1581.4,3.2078]
[1745257552845,1.26447,1581.5,1581.4,3.2078]
[1745257553149,3.1616,1581.3,1580.9,1.26491]
[1745257553347,6.24715,1581.2,1581.0,1.26487]
[1745257553547,2.4727,1581.1,1581.0,42.06487]
[1745257554452,6.07562,1581.2,1581.0,45.27262]
[1745257554755,3.73749,1581.1,1581.0,3.2078]
[1745257555044,2.4727,1581.1,1581.0,1.26487]
[1745257555247,8.6187,1581.1,1581.0,42.06487]
[1745257556151,9.88349,1581.1,1581.0,40.8]
[1745257556457,8.6187,1581.1,1581.0,40.8]
[1745257556754,1.26487,1581.0,1580.9,0.00948497]
[1745257556954,3.58247,1581.0,1580.9,0.00948497]
[1745257557154,14.72847,1581.0,1580.9,0.00948497]
[1745257557458,1.26503,1580.8,1580.7,3.2078]
[1745257557653,1.26512,1580.7,1580.5,42.06525]
[1745257557957,6.07602,1580.7,1580.5,42.06525]
[1745257558158,10.9569,1580.7,1580.4,8.50328743]
[1745257558346,2.469,1580.6,1580.4,8.0081]
[1745257558547,3.7342,1580.6,1580.4,6.9271]
[1745257558753,2.469,1580.6,1580.5,1.26527]
[1745257558954,8.6393,1580.7,1580.6,1.26519]
[1745257559156,11.1083,1580.7,1580.6,1.26519]
[1745257559454,11.1083,1580.7,1580.5,3.61741]
[1745257559753,2.469,1580.6,1580.5,3.61741]
[1745257560454,2.4933,1580.7,1580.6,1.26519]
[1745257560653,2.4933,1580.7,1580.6,3.61739]
[1745257561055,4.8997,1580.7,1580.6,3.61739]
[1745257561255,6.16481,1580.7,1580.6,2.3522]
[1745257561455,4.8997,1580.7,1580.5,3.6334]
[1745257561654,2.4064,1580.6,1580.5,6.1617]
[1745257561848,2.4064,1580.6,1580.4,44.0078]
[1745257562049,3.67166,1580.6,1580.4,45.27314]
[1745257562251,9.81759,1580.6,1580.4,45.27314]
[1745257562451,2.4064,1580.5,1580.4,45.27314]
[1745257562653,2.4064,1580.5,1580.4,44.0078]
[1745257563049,8.5524,1580.5,1580.4,44.0078]
[1745257563454,9.81767,1580.5,1580.4,44.0078]
[1745257563849,8.5524,1580.5,1580.4,45.27315]
[1745257564048,9.81767,1580.5,1580.4,44.0078]
[1745257564463,8.5524,1580.5,1580.4,45.27315]
[1745257565059,8.5524,1580.5,1580.4,40.8]
[1745257565354,1.26535,1580.4,1580.3,0.00948497]
[1745257565557,3.75715,1580.4,1580.3,0.00948497]
[1745257565749,1.26543,1580.3,1580.1,40.8]
[1745257565949,1.26551,1580.2,1580.1,40.8]
[1745257566157,12.28798,1580.3,1580.1,42.06558]
[1745257566358,2.4918,1580.2,1580.1,42.06558]
[1745257567055,8.6378,1580.2,1580.1,44.57398]
[1745257567458,9.90331,1580.2,1580.1,43.3084]
[1745257567658,1.26559,1580.1,1580.0,0.00948497]
[1745257567850,2.5249,1580.1,1580.0,0.00948497]
[1745257568046,6.146,1580.2,1580.1,1.26559]
[1745257568355,0.00948497,1580.3,1580.2,1.26551]
[1745257568561,1.26523,1580.6,1580.2,8.68366]
[1745257568856,3.79013,1580.6,1580.4,1.26529]
[1745257569158,2.5249,1580.6,1580.5,1.26527]
[1745257569362,1.26527,1580.5,1580.4,1.26533]